bitfinex-derivatives/quotes_ETHF0:USTF0_20251223
["timestamp","ask_amount","ask_price","bid_price","bid_amount"]
[1766507968834,0.00291325,2950.5,2949.5,3.39282607]
[1766507970535,0.00291325,2950.5,2949.6,3.799]
[1766507971739,3.391,2950.6,2949.6,3.799]
[1766507972242,3.56052,2950.9,2949.6,3.799]
[1766507972738,3.56465364,2950.9,2949.6,3.799]
[1766507973739,0.17365364,2950.9,2949.6,3.799]
[1766507975641,3.56465364,2950.9,2949.6,3.799]
[1766507976040,3.56465364,2950.9,2949.6,4.97241399]
[1766507976342,3.56465364,2950.9,2949.7,3.799]
[1766507976534,3.56465364,2950.9,2949.8,8.336]
[1766507976737,3.39513364,2950.9,2949.8,8.336]
[1766507979044,3.39513364,2950.9,2949.8,9.50941399]
[1766507979442,10.115,2951.8,2950.4,1.17341399]
[1766507979630,3.391,2951.6,2950.7,1.17341399]
[1766507979830,3.39,2951.7,2950.9,0.00508069]
[1766507980242,0.16946,2952.0,2950.9,0.00508069]
[1766507980439,3.56208311,2952.0,2950.9,0.00508069]
[1766507980942,3.56208311,2952.0,2950.4,3.39]
[1766507980943,1.34291399,2951.2,2950.4,3.39]
[1766507981137,3.39,2951.1,2950.4,3.39]
[1766507981538,3.39,2951.1,2950.1,0.259]
[1766507981737,3.39,2951.1,2950.2,3.39]
[1766507981945,0.00508069,2950.9,2950.4,0.00508069]
[1766507983841,1.17341399,2950.7,2949.1,35.08141399]
[1766507984046,1.17341399,2950.5,2949.0,1.17341399]
[1766507984245,1.17341399,2950.3,2949.6,3.39]
[1766507984947,1.17341399,2950.3,2949.7,0.00508069]
[1766507985143,1.17341399,2950.3,2949.7,3.39508069]
[1766507986149,3.39,2950.5,2949.7,3.39508069]
[1766507987146,3.39,2950.5,2949.7,0.00508069]
[1766507990345,3.39,2950.5,2949.5,3.39282607]
[1766507990346,3.39,2950.5,2948.2,2.05275199]
[1766507990558,3.39,2950.5,2948.4,51.803]
[1766507991349,0.29314,2950.6,2949.2,0.00508069]
[1766507991554,0.16954,2950.6,2949.3,9.417]
[1766507992048,0.00508069,2950.9,2949.3,9.417]
[1766507992655,0.00508069,2950.9,2949.2,0.12348068]
[1766507992954,0.00508069,2950.9,2949.3,13.276]
[1766507996155,0.16953,2950.7,2949.2,0.00508069]
[1766507996457,0.16954,2950.6,2949.3,3.391]
[1766507996657,0.16954,2950.6,2949.4,5.714]
[1766507996858,0.16954,2950.6,2949.5,3.799]
[1766507997570,3.4601,2950.7,2949.5,3.799]
[1766507997870,9.03475199,2950.7,2949.5,3.391]
[1766507998262,40.8,2950.6,2949.5,3.391]
[1766507998463,40.8,2950.6,2949.3,3.5501]
[1766507998464,0.16955,2950.3,2949.3,5.898]
[1766507998670,3.391,2950.2,2949.5,3.391]
[1766507999861,0.16955,2950.3,2949.5,3.391]
[1766508000069,3.391,2950.4,2949.5,3.391]
[1766508004773,0.16953,2950.8,2949.5,3.391]
[1766508004966,3.391,2950.7,2949.5,3.391]
[1766508006074,0.23843,2950.8,2949.5,3.391]
[1766508006369,9.555,2950.7,2949.5,3.391]
[1766508007972,1.17370438,2950.6,2949.5,3.391]
[1766508008167,3.391,2950.5,2949.5,3.391]
[1766508009272,3.391,2951.5,2950.2,1.17370438]
[1766508009474,3.391,2951.5,2950.7,1.17370438]
[1766508009767,3.391,2951.8,2950.8,3.391]
[1766508009972,0.00262311,2952.0,2950.9,6.031]
[1766508010374,0.00508069,2951.7,2951.2,0.00508069]
[1766508010573,3.391,2952.4,2951.3,3.391]
[1766508011472,0.00508069,2952.1,2951.3,3.391]
[1766508011774,3.39408392,2952.4,2951.3,3.391]
[1766508011971,3.391,2952.9,2951.3,3.391]
[1766508013178,3.39349965,2952.9,2951.3,3.391]
[1766508015175,3.39349965,2952.9,2951.4,6.03]
[1766508017173,0.00249965,2952.9,2951.7,2.04987315]
[1766508017378,3.39,2953.5,2951.8,3.39]
[1766508017575,3.39,2953.5,2951.9,12.861]
[1766508018373,3.39340645,2953.5,2951.9,12.861]
[1766508018570,6.171,2953.4,2951.9,12.861]
[1766508018769,9.56,2953.4,2951.9,12.861]
[1766508019979,3.389,2953.3,2951.9,12.861]
[1766508022281,0.00340645,2953.5,2952.0,3.799]
[1766508022581,3.389,2953.4,2952.1,3.389]
[1766508025289,0.00340645,2953.5,2952.1,5.43887315]
[1766508025482,0.00340645,2953.5,2951.5,0.16948]
[1766508025483,0.00340645,2953.5,2952.0,0.001]
[1766508025687,0.00340645,2953.5,2952.1,3.421]
[1766508025688,9.565,2953.4,2952.1,3.421]
[1766508026188,9.565,2953.4,2952.0,0.001]
[1766508026389,0.16938,2953.3,2952.1,6.966]
[1766508027287,0.16939,2953.2,2952.1,6.966]
[1766508027482,3.388,2953.1,2952.1,6.966]
[1766508029589,3.388,2953.1,2950.9,0.42351138]
[1766508029794,0.1694,2953.0,2951.3,13.168]
[1766508029989,0.1694,2952.9,2951.3,13.168]
[1766508030190,3.388,2952.8,2951.3,16.967]
[1766508030486,3.388,2952.8,2951.4,17.885]
[1766508032588,3.388,2952.8,2951.4,8.471]
[1766508032794,3.388,2952.8,2951.5,9.42]
[1766508032986,3.388,2952.8,2951.6,9.42]
[1766508033187,0.16943,2952.6,2951.6,9.42]
[1766508035285,0.16943,2952.6,2951.7,6.032]
[1766508035493,3.388,2952.5,2951.8,3.388]
[1766508037300,3.388,2953.1,2951.8,3.388]
[1766508037493,3.388,2953.0,2951.8,7.187]
[1766508037792,3.388,2953.4,2952.1,1.80843009]
[1766508037988,3.388,2953.4,2952.2,17.891]
[1766508038388,3.388,2953.4,2951.9,3.799]
[1766508038589,3.388,2953.4,2952.0,17.8919]
[1766508039092,3.388,2953.4,2952.0,17.891]
[1766508039593,3.388,2953.4,2951.9,3.7999]
[1766508039896,3.388,2953.4,2952.1,6.034]
[1766508040495,3.388,2953.4,2951.9,3.799]
[1766508040692,3.388,2953.4,2952.0,17.894]
[1766508040898,3.388,2953.4,2952.1,11.859]
[1766508041199,0.16938,2953.3,2951.9,0.0008]
[1766508041398,5.02243009,2953.3,2952.0,9.423]
[1766508041700,0.1694,2953.0,2952.1,5.663]
[1766508041900,3.388,2952.9,2952.2,3.388]
[1766508043890,0.00340645,2953.5,2952.2,3.388]
[1766508044202,3.388,2954.0,2952.2,5.19643009]
[1766508044499,3.388,2954.0,2952.8,0.00508069]
[1766508044801,3.388,2954.0,2952.9,9.423]
[1766508045187,3.3918142,2954.0,2952.9,9.42679816]
[1766508046304,3.3918142,2954.0,2953.0,9.422]
[1766508047402,3.5611542,2954.0,2953.0,9.422]
[1766508048195,3.5611542,2954.0,2952.9,0.00379816]
[1766508048394,3.5611542,2954.0,2953.0,3.388]
[1766508049501,3.5611542,2954.0,2952.0,35.85889009]
[1766508049502,1.97781009,2953.4,2951.7,8.47]
[1766508049803,3.388,2953.3,2952.1,6.033]
[1766508050007,3.388,2953.3,2952.2,3.388]
[1766508050501,3.388,2953.3,2952.2,3.39179394]
[1766508050705,0.00508069,2953.0,2952.5,0.00508069]
[1766508050897,0.00508069,2953.0,2952.6,3.388]
[1766508051709,3.39308069,2953.0,2952.2,0.00379394]
[1766508052511,3.39308069,2953.0,2952.2,3.39179394]
[1766508052706,3.39308069,2953.0,2952.3,0.00508069]
[1766508054099,3.39308069,2953.0,2952.3,3.39308069]
[1766508055204,3.39308069,2953.0,2950.2,0.16956]
[1766508055205,1.80843009,2952.7,2950.2,0.16956]
[1766508055411,0.16945,2952.1,2950.3,11.889]
[1766508055707,3.388,2952.0,2950.4,11.889]
[1766508056111,0.00508069,2951.5,2950.9,0.00508069]
[1766508056408,0.00777016,2951.5,2951.0,9.421]
[1766508057803,0.00777016,2951.5,2951.0,6.034]
[1766508058002,0.16941,2952.9,2951.1,3.388]
[1766508058208,3.388,2953.1,2951.4,1.80843009]
[1766508058410,3.388,2953.1,2951.5,51.775]
[1766508058708,7.064,2953.4,2951.5,51.775]
[1766508058906,0.00431316,2953.4,2952.0,1.80843009]
[1766508059108,1.316e-05,2953.4,2952.3,1.80843009]
[1766508059302,1.316e-05,2953.4,2952.4,17.894]
[1766508060213,0.00508069,2953.2,2952.6,0.00508069]
[1766508060410,0.00508069,2953.2,2952.7,3.388]
[1766508060612,0.00508069,2953.2,2952.8,6.036]
[1766508060806,1.316e-05,2953.4,2952.8,6.036]
[1766508061006,0.16931,2954.6,2953.1,1.80843009]
[1766508061202,0.37027407,2955.4,2953.5,1.80843009]
[1766508061507,1.80843009,2954.8,2952.9,1.80843009]
[1766508061811,5.19643009,2954.8,2953.6,0.00508069]
[1766508062004,5.20031825,2954.8,2953.7,4.501]
[1766508062507,1.80843009,2954.4,2953.7,3.388]
[1766508062902,3.388,2954.5,2953.7,3.388]
[1766508063100,3.55732,2954.5,2953.7,3.388]
[1766508063602,0.00388816,2954.8,2953.7,3.388]
[1766508063998,0.00388816,2954.8,2953.6,0.00508069]
[1766508063999,1.80843009,2954.7,2953.6,0.00508069]
[1766508064203,3.387,2954.6,2953.8,5.057]
[1766508066312,5.19543009,2954.6,2953.9,3.387]
[1766508067013,3.387,2954.6,2953.9,3.387]
[1766508067208,3.387,2954.6,2953.7,6.034]
[1766508067511,5.36474009,2954.6,2953.6,1e-08]
[1766508067710,0.00508068,2954.4,2953.6,1e-08]
[1766508067910,3.387,2954.3,2953.6,1e-08]
[1766508069104,0.00508068,2954.4,2953.6,1e-08]
[1766508070115,0.16929,2954.9,2953.6,1e-08]
[1766508070609,0.16929,2954.9,2953.7,2.047]
[1766508070814,0.16929,2954.9,2953.7,5.434]
[1766508073815,0.16929,2954.9,2953.8,9.419]
[1766508074318,3.387,2955.0,2953.8,9.419]
[1766508074513,9.129,2955.3,2953.9,1.80843009]
[1766508074715,3.387,2955.3,2953.9,1.80843009]
[1766508075215,0.20101407,2955.4,2953.9,1.80843009]
[1766508075715,0.20417869,2955.4,2953.9,1.80843009]
[1766508076323,0.20417869,2955.4,2953.6,1e-08]
[1766508076622,0.20417869,2955.4,2953.7,53.56143009]
[1766508077821,0.20417869,2955.4,2954.0,1.80843009]
[1766508078015,0.37343869,2955.4,2954.1,3.386]
[1766508078219,0.16927,2955.3,2954.2,17.887]
[1766508078423,0.16927,2955.3,2954.3,9.421]
[1766508080030,0.16929,2955.0,2953.6,1e-08]
[1766508080218,3.386,2954.9,2953.6,1e-08]
[1766508080527,0.16931,2954.6,2953.6,0.34200001]
[1766508080723,3.55531,2954.6,2953.7,2.072]
[1766508080920,3.55531,2954.6,2953.7,5.458]
[1766508081122,0.16934,2954.1,2951.9,11.36027658]
[1766508081321,0.16934,2954.1,2952.7,9.421]
[1766508081322,5.19443009,2954.0,2952.7,9.421]
[1766508081519,3.386,2954.0,2952.7,9.421]
[1766508081924,3.386,2954.0,2952.3,3.799]
[1766508082227,3.386,2954.0,2953.1,0.17042]
[1766508082427,3.386,2954.0,2953.2,3.386]
[1766508083728,3.386,2954.0,2953.1,0.17042]
[1766508083923,3.386,2954.0,2953.2,3.386]
[1766508084124,3.386,2954.0,2953.2,1.0075]
[1766508085437,3.386,2954.0,2953.3,3.386]
[1766508085628,3.386,2954.0,2953.1,0.17042]
[1766508085931,3.386,2954.0,2953.1,3.55642]
[1766508087633,3.55534,2954.0,2953.1,0.17042]
[1766508089418,3.55534,2954.0,2953.2,3.386]
[1766508090230,5.36377009,2954.0,2953.1,0.17042]
[1766508090431,5.36377009,2954.0,2953.1,3.55642]
[1766508090730,3.55534,2954.0,2953.1,3.55642]
[1766508092524,1.97778009,2953.8,2953.0,0.00508069]
[1766508092826,3.387,2953.7,2953.0,1e-07]
[1766508093633,0.00508061,2953.6,2953.0,1e-07]
[1766508096322,0.00508061,2953.6,2953.0,3.3870001]
[1766508097932,2.04715655,2954.9,2953.0,9.4210001]
[1766508098138,0.16932,2954.4,2953.0,9.4210001]
[1766508098436,3.387,2954.7,2953.0,9.4210001]
[1766508099029,3.387,2954.7,2953.1,6.035]
[1766508099232,3.387,2954.7,2953.1,9.422]
[1766508099926,0.16933,2954.3,2953.2,3.387]
[1766508100133,3.387,2954.2,2953.3,3.387]
[1766508101438,0.16933,2954.3,2953.3,3.387]
[1766508101739,3.55633,2954.3,2953.4,3.387]
[1766508102037,3.55633,2954.3,2953.5,3.387]
[1766508104236,5.734,2954.6,2953.5,3.387]
[1766508104433,0.16929,2955.0,2953.5,3.387]
[1766508104627,3.387,2955.2,2953.5,3.387]
[1766508106441,3.55627,2955.2,2953.5,3.387]
[1766508106645,0.16928,2955.1,2953.5,3.387]
[1766508106939,3.387,2955.2,2953.6,17.887]
[1766508106940,0.16929,2955.0,2953.6,17.887]
[1766508107141,3.386,2954.9,2953.6,17.887]
[1766508107733,5.349,2954.9,2953.0,1e-07]
[1766508108038,5.349,2954.9,2953.1,17.888]
[1766508108434,0.16931,2954.6,2953.1,17.888]
[1766508108634,3.386,2954.5,2953.1,17.888]
[1766508112343,3.386,2954.5,2953.2,6.043]
[1766508112540,3.386,2954.5,2953.2,17.895]
[1766508113244,3.386,2954.5,2953.0,1e-07]
[1766508113737,3.386,2954.5,2953.1,15.442]
[1766508115240,0.16932,2954.3,2953.2,9.432]
[1766508115450,3.386,2954.2,2953.2,9.432]
[1766508119552,1.963,2954.9,2953.3,3.799]
[1766508119841,3.5553,2954.8,2953.4,3.799]
[1766508120048,3.386,2954.8,2953.5,3.386]
[1766508120240,0.1693,2954.7,2953.4,3.799]
[1766508120444,0.16931,2954.5,2953.5,3.386]
[1766508120647,3.386,2954.4,2953.5,3.386]
[1766508121240,0.16931,2954.5,2953.5,3.386]
[1766508122946,0.16931,2954.5,2953.5,7.185]
[1766508123550,3.386,2954.4,2953.5,3.386]
[1766508128056,3.386,2954.4,2953.6,3.386]
[1766508131453,3.386,2954.4,2953.0,1e-07]
[1766508131654,3.386,2954.4,2953.1,13.952]
[1766508135765,3.55532,2954.4,2953.1,13.952]
[1766508136259,3.55532,2954.4,2953.0,1e-07]
[1766508136455,3.55532,2954.4,2953.1,17.897]
[1766508137465,3.55532,2954.4,2953.2,3.799]
[1766508138266,0.16932,2954.4,2953.2,3.799]
[1766508138862,0.16932,2954.4,2953.1,17.9958]
[1766508140172,0.16933,2954.3,2953.0,1e-07]
[1766508140468,3.386,2954.2,2953.1,2.264]
[1766508140772,3.386,2954.2,2953.2,3.386]
[1766508142273,3.55533,2954.2,2953.3,3.386]
[1766508142472,3.55533,2954.2,2953.0,0.0988001]
[1766508142678,3.55533,2954.2,2953.1,3.386]
[1766508143782,0.16933,2954.2,2953.1,7.185]
[1766508144174,3.386,2954.5,2953.1,7.185]
[1766508145685,3.55532,2954.5,2953.1,3.799]
[1766508145985,3.55532,2954.5,2953.0,0.0988001]
[1766508145986,0.16933,2954.2,2953.2,3.386]
[1766508146179,3.386,2954.1,2953.2,3.386]
[1766508147988,3.55534,2954.1,2953.2,3.386]
[1766508148382,0.16934,2954.0,2953.2,3.386]
[1766508150184,0.16934,2954.0,2953.0,3.7990001]
[1766508150675,0.16934,2954.0,2953.1,3.386]
[1766508150875,0.16934,2954.0,2953.0,3.7990001]
[1766508151382,0.16934,2954.0,2953.0,3.3860001]
[1766508153387,0.16935,2953.9,2953.0,3.3860001]
[1766508153592,3.386,2953.8,2953.0,3.3860001]
[1766508154089,3.55533,2954.2,2953.0,1e-07]
[1766508154392,3.55533,2954.2,2953.1,3.386]
[1766508154593,3.55533,2954.2,2953.2,6.044]
[1766508155087,3.55533,2954.2,2953.3,3.387]
[1766508155887,0.0678,2954.5,2953.3,3.387]
[1766508155888,3.386,2954.5,2953.3,3.387]
[1766508157694,3.386,2954.5,2953.4,6.043]
[1766508157998,3.386,2954.5,2953.4,9.429]
[1766508158994,0.16931,2954.6,2953.4,9.429]
[1766508159489,3.386,2955.0,2953.3,2.11485655]
[1766508159689,0.16927,2955.2,2953.4,15.471]
[1766508160090,0.16927,2955.2,2953.5,1.80516577]
[1766508160294,0.16927,2955.2,2953.9,1.80516577]
[1766508160596,3.386,2955.6,2954.0,9.43]
[1766508160789,3.386,2955.6,2954.1,17.897]
[1766508162497,0.16926,2955.5,2954.1,17.897]
[1766508164601,3.386,2955.6,2954.4,1.80516577]
[1766508164897,3.386,2955.6,2954.6,0.00508069]
[1766508165196,3.386,2955.6,2954.6,6.04808069]
[1766508165996,3.39020799,2955.6,2954.6,6.04808069]
[1766508166196,0.00420799,2955.6,2954.6,6.04808069]
[1766508166798,3.386,2955.9,2954.7,1.80516577]
[1766508166994,0.16922,2956.1,2954.8,3.386]
[1766508167191,9.535,2956.3,2954.9,8.465]
[1766508167698,9.5393259,2956.3,2954.9,0.00240879]
[1766508168199,9.5393259,2956.3,2955.0,4.359]
[1766508168588,9.5393259,2956.3,2955.0,6.16416577]
[1766508169292,0.16918,2956.9,2955.4,1.80516577]
[1766508169493,0.16918,2956.9,2955.5,9.427]
[1766508170299,0.17269467,2956.9,2955.5,9.427]
[1766508170705,0.00351467,2956.9,2955.5,11.23216577]
[1766508171292,0.00351467,2956.9,2955.4,0.1464]
[1766508171497,0.00351467,2956.9,2955.5,13.009]
[1766508172908,0.00351467,2956.9,2955.6,9.427]
[1766508173203,0.00351467,2956.9,2955.7,3.385]
[1766508174396,0.00351467,2956.9,2954.9,0.00240879]
[1766508174594,0.00351467,2956.9,2955.1,1.80516577]
[1766508175202,0.00351467,2956.9,2955.4,1.80516577]
[1766508175503,0.00351467,2956.9,2955.5,9.428]
[1766508176701,3.55497,2957.0,2955.5,9.428]
[1766508176702,0.0008,2957.0,2955.7,1.80516577]
[1766508176902,0.16913,2957.7,2956.7,1.80516577]
[1766508177103,0.16913,2957.7,2956.9,0.00508069]
[1766508177420,0.16914,2957.6,2953.9,2.95822405]
[1766508177608,0.16915,2957.4,2955.5,1.80516577]
[1766508177805,0.16916,2957.2,2955.6,1.072]
[1766508178005,3.384,2957.1,2955.7,3.384]
[1766508178507,0.00508068,2956.7,2956.1,0.00508069]
[1766508178708,0.00508068,2956.7,2956.2,3.384]
[1766508179010,0.00508068,2956.7,2956.3,3.384]
[1766508180208,0.00508068,2956.7,2956.1,0.00508069]
[1766508180404,0.00508068,2956.7,2956.2,3.384]
[1766508180615,0.00508068,2956.7,2956.1,0.00508069]
[1766508181005,0.00508068,2956.7,2956.0,3.384]
[1766508181200,0.00508068,2956.7,2955.8,3.384]
[1766508181605,0.00508068,2956.7,2955.7,0.14679999]
[1766508181908,0.00508068,2956.7,2954.9,0.00240879]
[1766508182108,0.00508068,2956.7,2955.5,0.00508069]
[1766508182307,0.00508068,2956.7,2955.6,3.384]
[1766508182497,0.1692,2956.6,2955.5,0.00508069]
[1766508182703,3.384,2956.5,2955.6,3.384]
[1766508183100,0.16921,2956.3,2955.5,0.00508069]
[1766508183413,3.384,2956.2,2955.5,0.00508069]
[1766508184002,3.55322,2956.2,2954.9,6.02340879]
[1766508184205,3.55322,2956.2,2955.2,0.1469]
[1766508184406,3.55322,2956.2,2955.1,3.384]
[1766508184709,3.55322,2956.2,2955.0,3.5309]
[1766508184909,3.55322,2956.2,2955.3,0.00508069]
[1766508185995,0.16922,2956.1,2955.3,0.00508069]
[1766508188206,0.16923,2956.0,2955.3,0.00508069]
[1766508188517,3.55324,2955.9,2955.1,0.1469]
[1766508188813,3.55324,2955.9,2955.1,3.384]
[1766508189308,3.55324,2955.9,2955.2,0.00508069]
[1766508190010,1.16944547,2955.8,2955.2,0.00508069]
[1766508190316,1.16944547,2955.8,2954.9,0.00240879]
[1766508190519,1.16944547,2955.8,2954.9,0.14940879]
[1766508191013,1.16944547,2955.6,2954.9,0.00240879]
[1766508191214,4.55344547,2955.6,2955.0,0.00508069]
[1766508192216,1.16944547,2955.4,2955.0,0.00508069]
[1766508192514,1.16944547,2955.4,2954.9,0.00240879]
[1766508193415,1.16944547,2955.4,2954.9,0.00579597]
[1766508193803,4.72269547,2955.6,2954.9,0.00579597]
[1766508196019,3.55325,2955.6,2954.9,0.00579597]
[1766508197717,0.16925,2955.6,2954.9,0.00579597]
[1766508198020,0.16925,2955.6,2954.9,3.39079597]
[1766508203021,0.16925,2955.6,2954.9,0.00579597]
[1766508203419,1.80470695,2955.5,2954.5,0.1472]
[1766508203626,3.385,2955.4,2954.5,3.385]
[1766508204511,0.00508069,2955.2,2954.5,3.38939594]
[1766508206020,0.14730001,2955.8,2954.5,3.38939594]
[1766508206230,3.385,2955.8,2954.5,3.38939594]
[1766508207125,0.00508069,2955.4,2954.9,0.00508068]
[1766508207328,0.00508069,2955.4,2954.9,3.39008068]
[1766508212122,0.16925,2955.7,2954.9,3.39008068]
[1766508213130,0.00508069,2955.6,2954.9,3.39008068]
[1766508213629,0.00508069,2955.6,2954.9,0.00508068]
[1766508214031,3.55933069,2955.6,2954.9,3.39008068]
[1766508214230,3.55933069,2955.6,2954.6,7.184]
[1766508215232,3.55933069,2955.6,2954.8,0.00508069]
[1766508216131,1.16991421,2955.2,2954.8,0.00508069]
[1766508217636,1.16991421,2955.0,2954.5,3.38939594]
[1766508217831,1.17343691,2955.0,2954.5,3.38939594]
[1766508218030,0.0035227,2955.0,2954.5,3.38939594]
[1766508218731,0.16926,2955.4,2954.5,3.38939594]
[1766508219624,0.17179859,2955.4,2954.5,3.38939594]
[1766508221232,1.16970259,2954.9,2953.1,2.95822405]
[1766508221438,1.16970259,2954.9,2953.5,1.16970259]
[1766508221636,1.16970259,2954.9,2953.6,3.385]
[1766508222035,3.385,2955.0,2953.6,3.385]
[1766508222236,3.385,2955.0,2953.6,3.38841207]
[1766508222538,3.385,2955.0,2953.7,6.042]
[1766508223727,0.16929,2954.9,2953.7,6.042]
[1766508224036,0.16929,2954.9,2953.6,3.38841207]
[1766508224037,0.16929,2954.9,2953.8,9.428]
[1766508224239,0.16929,2954.9,2953.6,0.00341207]
[1766508224543,0.16929,2954.9,2953.9,6.043]
[1766508224727,0.16929,2954.9,2954.0,3.385]
[1766508227245,0.1693,2954.8,2953.8,3.385]
[1766508227434,3.385,2954.7,2953.8,3.385]
[1766508228136,3.5543,2954.7,2953.8,3.385]
[1766508231045,5.723,2954.9,2953.8,3.385]
[1766508231343,3.385,2955.0,2953.8,3.385]
[1766508231840,3.385,2955.3,2953.8,3.385]
[1766508232938,0.16927,2955.2,2953.7,0.1913]
[1766508233140,0.16927,2955.2,2953.9,9.428]
[1766508247954,3.385,2955.3,2954.4,1.16996993]
[1766508248156,3.385,2955.3,2954.5,9.426]
[1766508249652,0.16927,2955.2,2954.5,9.426]
[1766508249851,0.16927,2955.2,2954.5,6.041]
[1766508250044,0.16927,2955.2,2954.6,3.385]
[1766508250247,0.16927,2955.2,2954.4,0.1941]
[1766508250445,0.16927,2955.2,2954.5,3.385]
[1766508250645,0.16927,2955.2,2953.9,1.16996993]
[1766508250844,0.16927,2955.2,2954.0,9.426]
[1766508253951,0.16927,2955.2,2954.1,6.04]
[1766508254163,0.16927,2955.2,2954.1,9.425]
[1766508254546,1.33925993,2955.0,2954.1,3.385]
[1766508254858,3.55429,2954.9,2954.1,3.385]
[1766508255360,0.83459,2954.9,2954.1,3.385]
[1766508255561,1.00388,2954.9,2954.1,3.385]
[1766508258746,1.00388,2954.9,2954.0,0.1939]
[1766508259060,1.00388,2954.9,2954.1,9.425]
[1766508260460,1.00388,2954.9,2954.2,3.385]
[1766508260861,1.00388,2954.9,2953.6,0.00341207]
[1766508261052,1.00388,2954.9,2953.7,3.799]
[1766508261253,1.00388,2954.9,2953.8,3.619]
[1766508264861,1.16996993,2954.7,2953.6,0.00341207]
[1766508265073,1.16996993,2954.4,2953.7,3.385]
[1766508265259,1.16996993,2954.4,2953.6,0.00341207]
[1766508265458,1.16996993,2954.7,2952.4,0.16943]
[1766508265459,1.33930993,2954.1,2953.4,3.385]
[1766508265659,0.00508069,2954.0,2953.2,3.385]
[1766508266364,1.16996993,2953.8,2953.1,3.6332]
[1766508266664,0.16936,2953.6,2953.1,7.01e-06]
[1766508266863,1.16996993,2953.5,2952.7,3.385]
[1766508267063,0.16936,2953.6,2952.7,3.385]
[1766508267266,0.2482,2953.4,2952.7,3.385]
[1766508267563,3.386,2953.4,2952.7,3.385]
[1766508267874,3.386,2953.4,2952.7,3.38848961]
[1766508269257,3.386,2953.4,2952.7,0.00348961]
[1766508269566,1.16996993,2953.2,2952.7,0.00348961]
[1766508269762,3.386,2953.1,2952.3,0.2498]
[1766508270062,1.16996993,2953.0,2952.3,3.386]
[1766508270869,1.16996993,2953.0,2952.3,3.38900654]
[1766508273369,1.16996993,2953.0,2952.3,0.00300654]
[1766508273565,1.16996993,2953.0,2952.4,3.386]
[1766508273764,3.386,2953.1,2952.3,0.00300654]
[1766508273765,4.55596993,2953.1,2952.3,0.00300654]
[1766508274073,4.55596993,2953.1,2952.4,3.386]
[1766508277173,3.386,2953.1,2952.4,3.386]
[1766508278774,1.33936993,2953.0,2952.3,0.00300654]
[1766508278971,0.1694,2953.0,2952.0,3.387]
[1766508279168,1.16996993,2952.7,2952.1,3.387]
[1766508279972,1.16996993,2952.7,2952.1,3.39036755]
[1766508281768,1.16996993,2952.5,2952.1,0.00336755]
[1766508281975,1.17213337,2952.4,2952.1,0.00336755]
[1766508283670,3.55643,2952.5,2951.8,4.55913337]
[1766508283876,3.55643,2952.5,2951.8,3.387]
[1766508284571,3.55643,2952.5,2951.8,3.39091497]
[1766508284777,0.00508069,2952.8,2951.8,4.56304834]
[1766508284976,4.72852337,2953.1,2952.0,1.17213337]
[1766508285173,1.17213337,2952.9,2952.1,3.387]
[1766508285574,1.17213337,2952.5,2952.0,0.198]
[1766508285769,1.17213337,2952.5,2952.1,3.387]
[1766508286372,0.00508069,2952.6,2952.1,3.387]
[1766508287280,0.00508069,2952.6,2952.0,0.00508069]
[1766508287478,0.00508069,2952.6,2952.1,3.387]
[1766508288676,0.00508069,2952.6,2952.0,0.00508069]
[1766508288876,0.00508069,2952.6,2952.1,3.388]
[1766508289888,0.00508069,2952.6,2952.1,7.187]
[1766508291186,0.00508069,2952.6,2952.1,3.799]
[1766508291583,0.00508069,2952.6,2952.2,3.388]
[1766508291784,0.00508069,2952.6,2952.1,3.799]
[1766508291980,0.00508069,2952.6,2952.2,3.388]
[1766508292381,1.17213337,2952.5,2952.1,3.799]
[1766508293894,0.00508069,2952.6,2952.1,3.799]
[1766508295188,0.1694,2953.1,2952.0,3.39308069]
[1766508295390,1.17213337,2952.9,2952.0,3.39308069]
[1766508296192,0.00508069,2952.7,2952.0,3.39308069]
[1766508296385,4.56013337,2952.9,2952.0,3.39308069]
[1766508296989,0.1694,2953.1,2952.0,3.39308069]
[1766508297195,3.39149861,2953.2,2952.0,3.39308069]
[1766508297196,3.39149861,2953.2,2952.2,1.17213337]
[1766508297500,3.55736,2953.6,2952.8,1.17213337]
[1766508297792,3.388,2953.9,2953.0,1.17213337]
[1766508297992,4.56013337,2954.0,2953.1,3.388]
[1766508298191,1.17213337,2953.8,2953.1,3.388]
[1766508298385,1.17213337,2953.6,2952.9,0.1314]
[1766508298589,1.17213337,2953.4,2952.2,1.17213337]
[1766508298790,1.17213337,2953.4,2952.3,12.589]
[1766508299195,1.17213337,2953.4,2952.4,1.17213337]
[1766508299493,0.00508069,2953.7,2952.6,1.17213337]
[1766508299890,0.00508069,2953.7,2952.7,4.652]
[1766508300298,0.00400122,2953.8,2953.1,1.17213337]
[1766508300499,1.22e-06,2953.8,2953.2,3.388]
[1766508300800,1.17213337,2954.1,2953.2,3.388]
[1766508300801,3.388,2954.1,2953.3,1.17213337]
[1766508300998,1.3706,2954.1,2953.3,1.17213337]
[1766508301301,0.00508069,2954.0,2953.3,1.17213337]
[1766508301506,0.00508069,2954.0,2953.2,9.60329999]
[1766508301699,0.00508069,2954.0,2953.2,9.428]
[1766508301700,3.192e-05,2954.0,2953.2,9.428]
[1766508301890,1.17213337,2954.6,2953.5,1.17213337]